[Event "34th GER-ch Seniors-65 2022"]
[Site "Magdeburg"]
[Date "2022.08.12"]
[Round "1.7"]
[White "Fleischer, Martin"]
[Black "Heinig, Wolfram"]
[Result "1/2-1/2"]
[ECO "B13"]
[WhiteElo "1830"]
[BlackElo "2244"]
[Annotator "TA"]
[PlyCount "123"]
[EventDate "2022.08.12"]
[EventType "swiss"]
[EventCountry "GER"]
[SourceTitle "playchess.com"]
[Source "ChessBase"]
[SourceQuality "1"]
[TimeControl "40/5400+30:1800+30"]

{[%evp 9,123,10,11,6,13,-10,-11,-9,-18,-18,-17,-31,-11,-18,-8,-35,-20,-84,-80,-77,-68,-71,-67,-75,-62,-73,-76,-93,-75,-63,-69,-73,-62,-76,-45,-41,-51,-45,-47,-52,-33,-61,-44,-142,-58,-69,-16,-27,-35,-40,-34,-27,0,0,0,0,0,-26,-28,-45,-54,-50,0,-14,0,-37,0,0,0,0,0,0,0,0,0,0,0,-23,0,0,0,0,0,0,0,0,0,0,0,0,0,0,0,0,0,0,0,0,0,0,0,0,0,0,0,0,0,0,0,0,0,0,0,0,0,0]} 1. e4 {[%emt 0:18:27]} c6 {[%emt 0:00:10]} 2. Nf3 {[%emt 0:01:12]} d5 {[%emt 0:00:07]} 3. exd5 {[%emt 0:00:03]} cxd5 {[%emt 0:00:06]} 4. d4 {[%emt 0:00:22]} Nc6 {[%emt 0:00:16]} 5. c3 {[%emt 0:01:48]} Bg4 {[%emt 0:04:02]} 6. h3 {[%emt 0:01:05] B13: Caro-Kann: Exchange Variation and Panov-Botvinnik Attack.} Bh5 {[%emt 0:11:15]} 7. Bb5 {[%emt 0:01:46] 7.Qb3 is becoming the main line.} Qb6 {[%emt 0:02:57] [#]} 8. Bxc6+ $146 {[%emt 0:03:20]} ({Predecessor:} 8. Ba4 e6 9. Nbd2 Nf6 10. Bc2 Bd6 11. O-O O-O 12. Re1 Rac8 13. g4 Bg6 14. Bxg6 hxg6 {0-1 (58) Carvalho,J (1811)-Farias,E (1773) Teresina 2022}) 8... bxc6 {[%emt 0:00:35]} 9. Nbd2 {[%emt 0:01:48]} e6 {[%emt 0:01:30]} 10. g4 {[%emt 0:01:52]} Bg6 {[%emt 0:00:14]} 11. Ne5 {[%emt 0:00:58]} Bd6 {[%emt 0:00:59]} 12. Qe2 {[%emt 0:04:07]} Ne7 {[%emt 0:09:37]} 13. Nxg6 {[%emt 0:02:44]} (13. Nb3 $11 {keeps the balance.}) 13... Nxg6 $17 {[%emt 0:02:19]} 14. Nf3 {[%emt 0:00:29]} Rb8 {[%emt 0:05:30]} 15. b4 {[%emt 0:06:48]} a5 {[%emt 0:03:09]} 16. a3 {[%emt 0:00:22]} Ra8 {[%emt 0:02:30][%cal Ra5b4]} 17. Rb1 {[%emt 0:02:29]} axb4 {[%emt 0:00:29]} 18. axb4 {[%emt 0:01:08]} O-O {[%emt 0:04:00]} (18... Qb7 {seems wilder.} 19. Kf1 Qb5 20. h4 Ke7) 19. O-O {[%emt 0:04:58]} Qc7 {[%emt 0:06:26]} 20. Re1 {[%emt 0:01:06]} Rfe8 {[%emt 0:04:58]} 21. Ne5 {[%emt 0:04:01]} Nf8 {[%emt 0:06:15]} 22. g5 {[%emt 0:05:31]} Bxe5 {[%emt 0:02:28]} 23. Qxe5 {[%emt 0:01:13]} Qxe5 {[%emt 0:00:21]} 24. dxe5 {[%emt 0:03:22]} Ra2 {[%emt 0:01:16]} 25. Rb2 {[%emt 0:04:57]} Rea8 {[%emt 0:01:17]} 26. Kg2 {[%emt 0:03:32]} (26. c4 $15) 26... Nd7 {[%emt 0:03:04]} (26... Rxb2 $17 27. Bxb2 Ra2) 27. Rbe2 {[%emt 0:03:26]} Nb6 {[%emt 0:08:12]} (27... g6 $15) 28. Be3 $11 {[%emt 0:01:33] [#] Hoping for Rxa2.} Nc4 {[%emt 0:00:18]} 29. Rxa2 {[%emt 0:02:55]} Rxa2 $15 {[%emt 0:00:49][%mdl 4096] Endgame KRB-KRN} 30. Bd4 {[%emt 0:00:21]} h5 {[%emt 0:00:28]} 31. gxh6 $1 {[%emt 0:01:28]} gxh6 {[%emt 0:00:28]} 32. Kg3 {[%emt 0:01:07]} Kh7 {[%emt 0:00:55]} 33. h4 {[%emt 0:04:03]} Na3 {[%emt 0:01:05]} 34. Rc1 {[%emt 0:01:35]} Nb5 {[%emt 0:03:34]} 35. Be3 {[%emt 0:04:26]} Na3 {[%emt 0:00:25]} (35... Ra3 $15) 36. Bd4 {[%emt 0:00:44]} Kg6 {[%emt 0:04:22]} 37. Kf3 {[%emt 0:03:02]} Nc4 {[%emt 0:03:22]} 38. Rg1+ {[%emt 0:00:59]} Kf5 {[%emt 0:00:18]} 39. Rg7 {[%emt 0:03:06]} Nxe5+ {[%emt 0:00:16]} 40. Bxe5 {[%emt 0:00:20]} Kxe5 {[%emt 0:00:04]} 41. Rxf7 $11 {[%emt 0:30:17] KR-KR} Ra3 {[%emt 0:30:55]} 42. Kg4 $1 {[%emt 0:01:07]} Rxc3 {[%emt 0:00:17]} 43. f4+ {[%emt 0:00:42]} Kd4 {[%emt 0:03:15]} (43... Ke4 $5 {[%cal Rh6h5]}) 44. Rf6 {[%emt 0:00:58][%csl LRe6,LRh6] The position is equal.} e5 {[%emt 0:00:28]} 45. fxe5 {[%emt 0:00:00]} Kxe5 {[%emt 0:00:00]} 46. Rxh6 {[%emt 0:00:00]} d4 {[%emt 0:00:00]} 47. Rh8 {[%emt 0:00:00]} Rc1 {[%emt 0:00:00]} 48. Re8+ {[%emt 0:00:00]} Kd5 {[%emt 0:00:00] [#] White must now prevent ...d3.} 49. Rd8+ {[%emt 0:00:00]} Ke4 {[%emt 0:00:00]} 50. Re8+ {[%emt 0:00:00]} Kd3 {[%emt 0:00:00] Strongly threatening ...Kc3.} 51. h5 {[%emt 0:00:00]} Kc3 {[%emt 0:00:00]} 52. h6 {[%emt 0:00:00] aiming for h7.} Rh1 {[%emt 0:00:00]} 53. Re6 {[%emt 0:00:00]} Kxb4 {[%emt 0:00:00] Threatens to win with ...c5.} 54. Rxc6 {[%emt 0:00:00]} d3 {[%emt 0:00:00]} 55. Rd6 {[%emt 0:00:00]} Kc3 {[%emt 0:00:00]} 56. Kg5 {[%emt 0:00:00]} d2 {[%emt 0:00:00]} 57. Kg6 {[%emt 0:00:00]} Rg1+ {[%emt 0:00:00]} 58. Kf6 {[%emt 0:00:00]} d1=Q {[%emt 0:00:00]} 59. Rxd1 {[%emt 0:00:00]} Rxd1 {[%emt 0:00:00]} 60. h7 {[%emt 0:00:00]} Rh1 {[%emt 0:00:00]} 61. Kg7 {[%emt 0:00:00]} Rxh7+ {[%emt 0:00:00]} 62. Kxh7 {[%emt 0:09:53] Weighted Error Value: White=0.09 (flawless) /Black=0.09 (flawless)} 1/2-1/2

[Event "34th GER-ch Seniors-65 2022"]
[Site "Magdeburg"]
[Date "2022.08.12"]
[Round "1.8"]
[White "Schulz, Michael"]
[Black "Meinke, Dietlind"]
[Result "1-0"]
[ECO "D00"]
[WhiteElo "2217"]
[BlackElo "1827"]
[Annotator "TA"]
[PlyCount "63"]
[EventDate "2022.08.12"]
[EventType "swiss"]
[EventCountry "GER"]
[SourceTitle "playchess.com"]
[Source "ChessBase"]
[SourceQuality "1"]
[TimeControl "40/5400+30:1800+30"]

{[%evp 12,63,16,18,11,10,32,14,22,6,22,14,26,23,39,8,18,18,22,6,33,17,24,13,51,7,4,0,0,0,17,14,14,20,17,19,39,33,129,119,170,38,213,204,214,191,196,199,838,827,1122,1058,1917,1514]} 1. d4 {[%emt 0:00:27]} d5 {[%emt 0:00:09]} 2. Bg5 {[%emt 0:00:14]} Nf6 {[%emt 0:00:24]} 3. Bxf6 {[%emt 0:00:08]} exf6 {[%emt 0:00:04]} 4. e3 {[%emt 0:00:06]} Bf5 {[%emt 0:01:51]} 5. Bd3 {[%emt 0:01:05]} Bxd3 {[%emt 0:05:43]} 6. Qxd3 {[%emt 0:00:06]} c6 {[%emt 0:02:33]} 7. Nf3 {[%emt 0:01:26] is cutting edge theory.} Nd7 {[%emt 0:01:51] D00: 1 d4 d5: Unusual lines.} 8. O-O {[%emt 0:00:48]} Bd6 {[%emt 0:03:35]} 9. Nbd2 {[%emt 0:02:47]} O-O {[%emt 0:00:34][%cal Bh8f8,Bf8e8,Be8e6][%mdl 32] The position is equal.} 10. e4 {[%emt 0:00:47]} Nb6 {[%emt 0:10:56]} 11. Rfe1 {[%emt 0:04:28] [#]} Bf4 $146 {[%emt 0:10:13]} ({Predecessor:} 11... Re8 12. g3 Rc8 13. a3 Bb8 14. exd5 Qxd5 15. c4 Qh5 16. Kg2 f5 17. b4 f4 {1-0 (28) Hain,G-Hoegerl,F Ludwigshafen 1994}) 12. b3 {[%emt 0:04:39]} Re8 {[%emt 0:02:29]} 13. a4 {[%emt 0:02:33][%cal Ba2a4,Ba4a5][%mdl 32]} Bxd2 {[%emt 0:06:36]} 14. Nxd2 {[%emt 0:00:14]} dxe4 {[%emt 0:03:19]} 15. Rxe4 {[%emt 0:00:40]} Re6 {[%emt 0:04:26]} 16. Rae1 {[%emt 0:01:51]} Qd7 {[%emt 0:01:32]} 17. c4 {[%emt 0:00:54]} Rae8 {[%emt 0:02:36]} 18. a5 {[%emt 0:01:55]} Nc8 {[%emt 0:04:54]} 19. c5 {[%emt 0:02:06]} Qd5 {[%emt 0:01:00]} 20. Rxe6 {[%emt 0:03:08]} fxe6 {[%emt 0:01:44]} 21. Nc4 {[%emt 0:05:40]} Rd8 {[%emt 0:02:58]} 22. Qh3 {[%emt 0:00:32]} Re8 {[%emt 0:03:12]} 23. Qe3 {[%emt 0:01:54]} Kf7 {[%emt 0:01:40]} 24. h3 {[%emt 0:04:52][%cal Oa5a6]} Re7 {[%emt 0:00:38] [#]} ({Better is} 24... Rd8 $14) 25. Qf4 $1 $16 {[%emt 0:01:27] White is more active.} Qd8 {[%emt 0:17:27]} (25... Ke8 $16 26. Qb8 Qd8) 26. g3 {[%emt 0:05:38]} (26. a6 $1 $18 Qc7 27. Qf3) 26... g5 $2 {[%emt 0:02:06] [#] Black cannot hold the game after this.} (26... a6 $1 $14) 27. Qe4 $1 $18 {[%emt 0:04:00]} Kg7 {[%emt 0:01:28]} 28. h4 {[%emt 0:01:21] aiming for hxg5.} Qd5 {[%emt 0:00:18]} 29. hxg5 {[%emt 0:00:25]} Qxg5 {[%emt 0:00:27]} (29... Qxe4 30. gxf6+ (30. Rxe4 fxg5 31. a6 b6 $16) 30... Kxf6 31. Rxe4 a6) 30. Nd6 {[%emt 0:00:39] White is clearly winning.} Nxd6 {[%emt 0:02:17]} 31. cxd6 {[%emt 0:00:06]} Rd7 {[%emt 0:00:09]} 32. Qxe6 {[%emt 0:00:21] Weighted Error Value: White=0.16 (very precise) /Black=0.32} 1-0

[Event "34th GER-ch Seniors-65 2022"]
[Site "Magdeburg"]
[Date "2022.08.12"]
[Round "1.9"]
[White "Bodemer, Wolfgang"]
[Black "Glienke, Manfred"]
[Result "1/2-1/2"]
[ECO "E11"]
[WhiteElo "1852"]
[BlackElo "2205"]
[Annotator "TA"]
[PlyCount "44"]
[EventDate "2022.08.12"]
[EventType "swiss"]
[EventCountry "GER"]
[SourceTitle "playchess.com"]
[Source "ChessBase"]
[SourceQuality "1"]
[TimeControl "40/5400+30:1800+30"]

{[%evp 16,44,60,52,66,54,73,80,100,33,52,40,41,39,43,39,40,41,47,47,41,34,57,0,33,33,33,35,35,33,23]} 1. d4 {[%emt 0:00:04]} Nf6 {[%emt 0:00:08]} 2. c4 {[%emt 0:00:13]} e6 {[%emt 0:00:08]} 3. Nf3 {[%emt 0:00:33]} d5 {[%emt 0:01:30]} 4. g3 {[%emt 0:00:21]} Bb4+ {[%emt 0:00:22]} 5. Bd2 {[%emt 0:00:36]} a5 {[%emt 0:03:29]} 6. Bg2 {[%emt 0:04:47]} O-O {[%emt 0:01:26]} 7. a3 {[%emt 0:02:49]} Bxd2+ {[%emt 0:00:19]} 8. Nbxd2 {[%emt 0:00:25]} Nc6 {[%emt 0:01:55][%cal Bb8c6,Bc6a5,Ba5b3][%mdl 32]} 9. O-O {[%emt 0:02:44]} a4 {[%emt 0:00:56] E11: Bogo-Indian.} 10. e3 {[%emt 0:05:22] [#]} Ra7 $146 {[%emt 0:04:08]} ({Predecessor:} 10... Bd7 11. Ne5 Qe7 12. Rc1 Rfd8 13. Nxd7 Qxd7 14. cxd5 exd5 15. Rc3 Ne7 16. Qc2 c6 {0-1 (61) Riediger,M (2246)-Kosic,D (2528) Bayern 2015}) 11. Rc1 {[%emt 0:04:04]} Bd7 {[%emt 0:01:31] White is better.} 12. Qe2 {[%emt 0:03:42]} ({Better is} 12. Ne5 $16) 12... h6 {[%emt 0:10:22]} 13. Rfd1 {[%emt 0:06:20]} Na5 {[%emt 0:11:50]} 14. Ne5 {[%emt 0:04:47]} dxc4 {[%emt 0:02:10]} 15. Ndxc4 {[%emt 0:09:02]} Bb5 {[%emt 0:01:57]} 16. Qe1 {[%emt 0:05:18]} Nb3 {[%emt 0:05:56]} 17. Rc2 {[%emt 0:01:43]} c6 {[%emt 0:01:21]} 18. Nd2 {[%emt 0:05:05]} Na5 {[%emt 0:02:46]} 19. Ndc4 {[%emt 0:01:53]} (19. Nb1 $14) 19... Nxc4 {[%emt 0:05:22]} 20. Nxc4 {[%emt 0:01:10] White is slightly better.} Qe7 {[%emt 0:01:11]} 21. Ne5 {[%emt 0:01:46]} Rd8 {[%emt 0:01:07]} 22. Rdc1 {[%emt 0:02:44]} Nd7 {[%emt 0:04:00] Weighted Error Value: White=0.12 (very precise) /Black=0.10 (very precise)} 1/2-1/2

[Event "34th GER-ch Seniors-65 2022"]
[Site "Magdeburg"]
[Date "2022.08.12"]
[Round "1.10"]
[White "Vatter, Hans-Joachim"]
[Black "Andrijenko, Anatoliy"]
[Result "1-0"]
[ECO "D82"]
[WhiteElo "2186"]
[BlackElo "1822"]
[Annotator "TA"]
[PlyCount "95"]
[EventDate "2022.08.12"]
[EventType "swiss"]
[EventCountry "GER"]
[SourceTitle "playchess.com"]
[Source "ChessBase"]
[SourceQuality "1"]
[TimeControl "40/5400+30:1800+30"]

{[%evp 9,95,27,37,8,79,77,83,45,163,175,179,175,188,95,91,99,104,111,105,103,118,105,137,127,247,247,241,247,245,212,228,241,336,343,333,317,379,368,429,413,407,405,572,398,397,356,358,360,360,335,350,350,350,335,416,408,383,314,375,377,389,318,738,733,728,661,710,691,937,931,909,909,810,753,759,712,2697,2072,2784,2608,2553,2406,29986,29987,6432,6508,3374,2700]} 1. d4 {[%emt 0:00:01]} Nf6 {[%emt 0:03:02]} 2. c4 {[%emt 0:00:24]} g6 {[%emt 0:00:42]} 3. Nc3 {[%emt 0:00:16]} d5 {[%emt 0:01:37]} 4. Bf4 {[%emt 0:01:48]} c6 {[%emt 0:02:46]} 5. e3 {[%emt 0:00:21]} Bg7 {[%emt 0:00:24]} 6. h3 {[%emt 0:00:24] D82: Grünfeld: 4 Bf4.} h5 {[%emt 0:03:48]} (6... O-O $11 {keeps the balance.}) 7. Nf3 {[%emt 0:01:48]} Bf5 {[%emt 0:04:07]} 8. Qb3 {[%emt 0:03:33] [#] White is better.} b6 $146 {[%emt 0:02:33] [#]} (8... Qb6 $14) ({Predecessor:} 8... Qb6 9. Qxb6 axb6 10. cxd5 cxd5 11. Bb5+ Bd7 12. O-O O-O 13. Rfc1 e6 14. Bc7 Bc6 15. Bxb6 {0-1 (36) Llagaria Vidal,E-Arechavaleta Saez,J Spain 1981}) 9. cxd5 $1 $18 {[%emt 0:05:30]} Nxd5 {[%emt 0:10:32]} 10. Nxd5 {[%emt 0:02:52]} Qxd5 {[%emt 0:03:23]} 11. Qxd5 {[%emt 0:09:26]} (11. Bc4 $18 Qa5+ 12. Ke2) 11... cxd5 $16 {[%emt 0:00:03]} 12. Rc1 {[%emt 0:00:36]} O-O {[%emt 1:03:33]} 13. Kd2 {[%emt 1:10:01]} Nd7 {[%emt 0:00:00][%cal Bb8d7,Bd7f6,Bf6e4][%mdl 32]} 14. Ba6 {[%emt 0:00:00]} Nf6 {[%emt 0:00:00]} 15. Bb7 {[%emt 0:00:00] White is more active.} Ne4+ {[%emt 0:01:30]} 16. Ke2 {[%emt 0:01:30]} Bc8 {[%emt 0:00:00]} 17. Bxa8 $18 {[%emt 0:00:00]} ({Don't do} 17. Bxd5 $6 Ba6+ 18. Bc4 Bb7) 17... Ba6+ {[%emt 0:00:00]} 18. Ke1 {[%emt 0:00:00]} Rxa8 {[%emt 0:00:00]} 19. Nd2 {[%emt 0:00:00]} g5 {[%emt 0:00:00]} 20. Bh2 {[%emt 0:00:00]} f6 {[%emt 0:00:00]} 21. f3 {[%emt 0:00:00]} Nxd2 {[%emt 0:00:00]} 22. Kxd2 {[%emt 0:00:00]} e5 {[%emt 0:00:00]} 23. Rc7 {[%emt 0:00:00]} Bf8 {[%emt 0:04:00]} 24. dxe5 {[%emt 0:04:00]} Bb4+ {[%emt 0:00:00]} 25. Kc1 {[%emt 0:00:00]} Bc5 {[%emt 0:00:00]} (25... f5 {was necessary.} 26. Rd1 Rc8) 26. Re1 {[%emt 0:00:00]} f5 {[%emt 0:00:00]} 27. Kc2 {[%emt 0:00:00]} Rc8 {[%emt 0:00:00]} 28. Rxc8+ {[%emt 0:00:00]} ({Less strong is} 28. Rxa7 Bxe3+ 29. Kb3 Bc4+ 30. Ka3 Bf2 $16) 28... Bxc8 {[%emt 0:02:30][%mdl 4096] Endgame KRB-KB} 29. f4 {[%emt 0:02:30]} g4 {[%emt 0:00:00]} 30. Bg3 {[%emt 0:00:00]} Kf7 {[%emt 0:00:00]} 31. Bf2 {[%emt 0:00:00]} Be7 {[%emt 0:00:00]} 32. a3 {[%emt 0:00:00]} h4 {[%emt 0:00:00]} 33. Rc1 {[%emt 0:00:00]} Bd7 {[%emt 0:00:00]} 34. Be1 {[%emt 0:00:00]} Bc5 {[%emt 0:00:00]} 35. Kd2 {[%emt 0:00:00]} d4 $2 {[%emt 0:00:00]} (35... g3 36. b4 Be7) 36. exd4 {[%emt 0:00:00]} Bxd4 {[%emt 0:00:00]} 37. Bxh4 {[%emt 0:00:00]} gxh3 {[%emt 0:04:30]} 38. gxh3 {[%emt 0:04:30]} Bxb2 {[%emt 0:00:30]} 39. Rc7 {[%emt 0:00:30][%csl LRa7,LRd7]} Ke6 {[%emt 0:00:00]} 40. Rxa7 {[%emt 0:00:00]} Bc6 {[%emt 0:00:00]} 41. Bf6 {[%emt 0:00:00]} Bd4 {[%emt 0:12:14]} 42. h4 {[%emt 0:00:00] aiming for h5.} Kd5 {[%emt 0:19:46]} 43. h5 {[%emt 0:32:00] Threatens to win with h6.} Ke4 {[%emt 0:00:30]} 44. h6 {[%emt 0:00:30] Intending h7 and mate.} Be3+ {[%emt 0:00:00]} 45. Kc2 {[%emt 0:00:00] White wants to mate with h7.} Bb5 {[%emt 0:00:00]} 46. h7 {[%emt 0:00:00]} Bd3+ {[%emt 0:00:00]} 47. Kb3 {[%emt 0:00:00]} b5 {[%emt 0:00:00] [#]} 48. h8=Q $1 {[%emt 0:00:00] Weighted Error Value: White=0.22 (precise) /Black=0.45} 1-0

[Event "34th GER-ch Seniors-65 2022"]
[Site "Magdeburg"]
[Date "2022.08.12"]
[Round "1.11"]
[White "Huhn, Ulrich"]
[Black "Koehler, Gerhard"]
[Result "0-1"]
[ECO "C12"]
[WhiteElo "1827"]
[BlackElo "2184"]
[Annotator "TA"]
[PlyCount "66"]
[EventDate "2022.08.12"]
[EventType "swiss"]
[EventCountry "GER"]
[SourceTitle "playchess.com"]
[Source "ChessBase"]
[SourceQuality "1"]
[TimeControl "40/5400+30:1800+30"]

{[%evp 14,66,8,-35,-35,-33,-37,-60,-72,-46,-28,-50,-48,-130,-117,-116,-128,-122,-122,-127,-110,-125,-126,-111,-121,-124,-111,-172,-102,-142,-163,-191,-190,-190,-186,-211,-216,-243,-229,-237,-226,-231,-240,-442,-427,-429,-407,-431,-374,-420,-405,-444,-454,-714,-694]} 1. d4 {[%emt 0:00:18]} Nf6 {[%emt 0:00:06]} 2. Nc3 {[%emt 0:00:46]} d5 {[%emt 0:00:21]} 3. Bg5 {[%emt 0:01:07]} e6 {[%emt 0:00:15]} 4. e4 {[%emt 0:01:03]} Bb4 {[%emt 0:00:19]} 5. e5 {[%emt 0:02:29]} h6 {[%emt 0:00:33]} 6. Bd2 {[%emt 0:08:50]} Bxc3 {[%emt 0:00:25]} 7. Bxc3 {[%emt 0:01:25]} Ne4 {[%emt 0:00:17]} 8. Bd3 {[%emt 0:02:58]} Nxc3 {[%emt 0:01:46] C12: French: Classical System: McCutcheon Variation.} 9. bxc3 {[%emt 0:00:42]} c5 {[%emt 0:00:11]} 10. Nf3 {[%emt 0:03:30]} Qa5 {[%emt 0:00:56] Black is slightly better.} 11. Qd2 {[%emt 0:00:43]} Nc6 {[%emt 0:00:10]} 12. Be2 {[%emt 0:25:57] [#]} O-O $146 {[%emt 0:05:10]} ({Predecessor:} 12... Bd7 13. Rb1 b6 14. Bb5 Nxe5 15. Bxd7+ Nxd7 16. O-O Rc8 17. Rfe1 cxd4 18. Qxd4 O-O {0-1 (35) Giersing/Pritzel-Capablanca,J Copenhagen 1911}) 13. O-O {[%emt 0:06:39] White is now going downhill.} (13. dxc5 $15 Qxc5 14. O-O) 13... cxd4 $17 {[%emt 0:00:57]} 14. cxd4 {[%emt 0:13:47]} Qxd2 {[%emt 0:00:22]} 15. Nxd2 {[%emt 0:00:02]} Nxd4 {[%emt 0:00:19]} 16. Bd3 {[%emt 0:00:06]} Bd7 {[%emt 0:04:11]} 17. Rab1 {[%emt 0:28:38]} b6 {[%emt 0:01:05]} 18. c3 {[%emt 0:00:00]} Nc6 {[%emt 0:00:21]} 19. f4 {[%emt 0:00:00]} Rac8 {[%emt 0:03:22][%cal Ba8c8,Bc8c5,Bc5a5][%mdl 32]} 20. Rfc1 {[%emt 0:00:00]} (20. c4 $17 {is a better defense.}) 20... Na5 {[%emt 0:00:30]} ({Better is} 20... g5 $19 21. fxg5 Nxe5) 21. Nf3 {[%emt 0:00:00]} Rc5 {[%emt 0:02:00]} 22. Nd4 {[%emt 0:00:00]} Rfc8 {[%emt 0:01:22][%cal Bf8c8,Bc8c4,Bc4a4][%mdl 32]} 23. Ne2 {[%emt 0:00:00]} Nc4 {[%emt 0:02:50]} 24. Kf2 {[%emt 0:00:00]} Ra5 {[%emt 0:01:40]} 25. Bxc4 {[%emt 0:00:00]} Rxc4 {[%emt 0:00:15]} ({Stronger than} 25... dxc4 26. Rb2 $17) 26. Rb2 {[%emt 0:00:00]} Rca4 {[%emt 0:00:34]} 27. Rcc2 {[%emt 0:00:00]} Bb5 {[%emt 0:03:01]} 28. Nc1 $2 {[%emt 0:00:00] [#]} (28. g3) 28... Rxf4+ $19 {[%emt 0:00:59]} 29. Kg3 {[%emt 0:00:00]} Rc4 {[%emt 0:06:05]} 30. Ne2 {[%emt 0:00:00]} Rca4 {[%emt 0:03:40]} 31. Nd4 {[%emt 0:00:00]} Bc4 {[%emt 0:00:42][%cal Ra4a2]} 32. Nc6 {[%emt 0:00:00]} Rc5 {[%emt 0:00:25]} 33. Nb4 {[%emt 0:00:00]} (33. Nd4 $142) 33... a5 {[%emt 0:00:52] Weighted Error Value: White=0.39/Black=0.08 (flawless)} 0-1

[Event "34th GER-ch Seniors-65 2022"]
[Site "Magdeburg"]
[Date "2022.08.12"]
[Round "1.12"]
[White "Gruzmann, Boris"]
[Black "Abel, Hans-Peter"]
[Result "1-0"]
[ECO "B07"]
[WhiteElo "2173"]
[BlackElo "1796"]
[Annotator "TA"]
[PlyCount "47"]
[EventDate "2022.08.12"]
[EventType "swiss"]
[EventCountry "GER"]
[SourceTitle "playchess.com"]
[Source "ChessBase"]
[SourceQuality "1"]
[TimeControl "40/5400+30:1800+30"]

{[%evp 10,47,20,23,47,10,11,15,9,6,101,82,96,98,132,98,119,69,105,112,145,101,142,97,146,150,381,382,388,381,410,389,398,390,985,960,800,731,956,942]} 1. e4 {[%emt 0:00:07]} d6 {[%emt 0:00:18]} 2. d4 {[%emt 0:00:16]} Nf6 {[%emt 0:00:17]} 3. Nc3 {[%emt 0:00:14]} g6 {[%emt 0:00:44]} 4. Bg5 {[%emt 0:00:16]} Bg7 {[%emt 0:00:45]} 5. e5 {[%emt 0:00:24]} dxe5 {[%emt 0:02:05]} 6. dxe5 {[%emt 0:00:12]} Nfd7 {[%emt 0:01:40] B07: Pirc Defence: Miscellaneous Systems.} 7. f4 {[%emt 0:02:47]} (7. e6 $5 fxe6 8. Qd2 $14) 7... O-O {[%emt 0:04:41]} 8. Nf3 {[%emt 0:11:35]} Nc6 {[%emt 0:09:30] The position is equal.} 9. Bb5 {[%emt 0:06:24]} Ndb8 {[%emt 0:01:39]} (9... f6 $11 10. Bh4 Nb6) 10. O-O {[%emt 0:01:18] [#]} Be6 $146 {[%emt 0:03:35]} ({Predecessor:} 10... a6 11. Ba4 Be6 12. Qxd8 Rxd8 13. Rfd1 f6 14. exf6 exf6 15. Bh4 Rf8 16. Nd5 Bxd5 17. Rxd5 {½-½ (26) Csapo,Z (2162)-Farago,S (2275) Budapest 2007}) 11. Bh4 {[%emt 0:04:07]} h6 {[%emt 0:00:36]} 12. Bf2 {[%emt 0:01:55]} a6 {[%emt 0:00:51]} 13. Ba4 {[%emt 0:04:42]} ({White should play} 13. Bd3 $16) 13... b5 {[%emt 0:04:41]} 14. Bb3 {[%emt 0:00:16]} Qc8 {[%emt 0:01:34]} 15. Ne4 {[%emt 0:03:23]} Bg4 {[%emt 0:06:23]} 16. Nc5 {[%emt 0:04:03] Black must now prevent h3. White is much more active.} Rd8 {[%emt 0:02:45]} (16... Nd7 $142) 17. Qe2 {[%emt 0:04:19] h3 is the strong threat.} Nd4 $2 {[%emt 0:10:00] [#] This move loses the game for Black.} (17... Na5 $16 18. h3 Nxb3 19. axb3 Bxf3 20. Qxf3 Nd7) 18. Bxd4 $18 {[%emt 0:01:12]} ({Not} 18. Bxf7+ Kxf7 19. Bxd4 Rxd4 $11) 18... Rxd4 {[%emt 0:00:53]} 19. Qe3 {[%emt 0:01:56]} Rd8 {[%emt 0:02:06]} 20. e6 {[%emt 0:08:38][%cal Be5e6,Be6f7][%mdl 32]} Rd6 {[%emt 0:22:29]} 21. exf7+ {[%emt 0:01:54]} Kf8 $2 {[%emt 0:00:42]} (21... Kh7 22. Rae1 (22. Qxe7 Nc6 $18) 22... Nd7) 22. Rae1 {[%emt 0:04:57][%csl Ge1][%cal Re3e7] [#] White is clearly winning.} Nc6 {[%emt 0:07:01]} 23. c3 {[%emt 0:04:34]} a5 {[%emt 0:01:02]} 24. Ne5 {[%emt 0:02:56] Weighted Error Value: White=0.14 (very precise) /Black=0.53} 1-0